[Event "Belarus-ch Women 2022"]
[Site "Minsk"]
[Date "2022.01.14"]
[Round "4.4"]
[White "Ajusheva, Renata"]
[Black "Khomich, Maryna"]
[Result "1/2-1/2"]
[ECO "D02"]
[WhiteElo "1464"]
[BlackElo "1627"]
[Annotator "NA RC"]
[PlyCount "55"]
[EventDate "2022.01.11"]
[EventType "tourn"]
[EventCountry "BLR"]
[SourceTitle "playchess.com"]
[Source "ChessBase"]
[SourceQuality "1"]
[TimeControl "40/5400+30:1800+30"]

1. d4 {[%emt 0:00:02]} d5 {[%emt 0:00:05]} 2. Nf3 {[%emt 0:00:05]} Nf6 {[%emt 0:00:11]} 3. Bf4 {[%emt 0:00:23]} Bf5 {[%emt 0:01:37]} 4. e3 {[%emt 0:02:22]} e6 {[%emt 0:00:20]} 5. Bd3 {[%emt 0:00:26]} Bxd3 {[%emt 0:00:48]} 6. Qxd3 {[%emt 0:00:05]} c6 {[%emt 0:01:35]} 7. c4 {[%emt 0:01:23]} Be7 {[%emt 0:05:03]} 8. Nc3 {[%emt 0:00:19]} O-O {[%emt 0:00:53]} 9. O-O {[%emt 0:03:35]} a6 {[%emt 0:15:29]} 10. a4 {[%emt 0:00:51]} a5 {[%emt 0:04:04]} 11. h3 {[%emt 0:02:50]} Bd6 {[%emt 0:03:06]} 12. Bxd6 {[%emt 0:00:29]} Qxd6 {[%emt 0:00:05]} 13. Ne5 {[%emt 0:01:18]} Nbd7 {[%emt 0:05:57]} 14. f4 {[%emt 0:00:41]} Qc7 {[%emt 0:03:30]} 15. Rac1 {[%emt 0:02:03]} Rad8 {[%emt 0:05:02]} 16. g4 {[%emt 0:06:12]} dxc4 {[%emt 0:02:18]} 17. Qxc4 {[%emt 0:00:14]} Qb6 {[%emt 0:09:27]} 18. Qe2 {[%emt 0:06:17]} c5 {[%emt 0:01:50]} 19. g5 {[%emt 0:14:16]} Ne8 {[%emt 0:00:13]} 20. Nxd7 {[%emt 0:01:08]} Rxd7 {[%emt 0:00:11]} 21. dxc5 {[%emt 0:02:50]} Qxc5 {[%emt 0:00:13]} 22. Ne4 {[%emt 0:06:13]} Qb6 {[%emt 0:05:48]} 23. Rc8 {[%emt 0:10:09]} Rc7 {[%emt 0:06:38]} 24. Rc1 {[%emt 0:18:05]} Rxc1+ {[%emt 0:01:05]} 25. Rxc1 {[%emt 0:00:08]} Nd6 {[%emt 0:13:47]} 26. Nxd6 {[%emt 0:03:30]} Qxd6 {[%emt 0:00:05]} 27. Kf2 {[%emt 0:01:20]} e5 {[%emt 0:04:29]} 28. Kg3 {[%emt 0:17:16]} 1/2-1/2

[Event "Belarus-ch Women 2022"]
[Site "Minsk"]
[Date "2022.01.15"]
[Round "5.1"]
[White "Norman, Kseniya"]
[Black "Sidorenja, Milena"]
[Result "1-0"]
[ECO "B31"]
[WhiteElo "1810"]
[BlackElo "1510"]
[Annotator "NA"]
[PlyCount "59"]
[EventDate "2022.01.11"]
[EventType "tourn"]
[EventCountry "BLR"]
[SourceTitle "playchess.com"]
[Source "ChessBase"]
[SourceQuality "1"]
[TimeControl "40/5400+30:1800+30"]

1. e4 {[%emt 0:01:58]} c5 {[%emt 0:00:07]} 2. Nf3 {[%emt 0:00:20]} Nc6 {[%emt 0:00:12]} 3. Bb5 {[%emt 0:01:34]} g6 {[%emt 0:00:52]} 4. O-O {[%emt 0:03:55]} Bg7 {[%emt 0:00:13]} 5. Bxc6 {[%emt 0:02:02]} bxc6 {[%emt 0:00:08]} 6. Nc3 {[%emt 0:00:58]} e5 {[%emt 0:00:20]} 7. d3 {[%emt 0:04:26]} Ne7 {[%emt 0:00:15]} 8. Qe2 {[%emt 0:07:57]} O-O {[%emt 0:00:44]} 9. Be3 {[%emt 0:02:22]} d6 {[%emt 0:01:04]} 10. Nd2 {[%emt 0:01:35]} f5 {[%emt 0:00:38]} 11. f4 {[%emt 0:09:16]} g5 {[%emt 0:49:03]} 12. fxe5 {[%emt 0:10:47]} f4 {[%emt 0:00:19]} 13. exd6 {[%emt 0:04:48]} Qxd6 {[%emt 0:00:29]} 14. Nc4 {[%emt 0:01:58]} Qe6 {[%emt 0:12:19]} 15. Bxc5 {[%emt 0:01:39]} g4 {[%emt 0:02:28]} 16. e5 {[%emt 0:07:26]} Ba6 {[%emt 0:16:46]} 17. Bxe7 {[%emt 0:02:31]} Qxe7 {[%emt 0:00:08]} 18. Qxg4 {[%emt 0:04:19]} Bxc4 {[%emt 0:00:17]} 19. dxc4 {[%emt 0:00:10]} Qxe5 {[%emt 0:00:08]} 20. Kh1 {[%emt 0:01:01]} Rae8 {[%emt 0:01:26]} 21. Rad1 {[%emt 0:01:00]} Re6 {[%emt 0:04:59]} 22. h3 {[%emt 0:07:22]} h5 {[%emt 0:03:00]} 23. Qh4 {[%emt 0:04:16]} Rg6 {[%emt 0:03:16]} 24. Rd8 {[%emt 0:03:31]} Rxd8 {[%emt 0:00:06]} 25. Qxd8+ {[%emt 0:00:04]} Kh7 {[%emt 0:00:04]} 26. Qd3 {[%emt 0:01:08]} Qg5 {[%emt 0:01:53]} 27. Qf3 {[%emt 0:01:47]} Bxc3 {[%emt 0:00:58]} 28. bxc3 {[%emt 0:00:02]} Rf6 {[%emt 0:01:42]} 29. Rd1 {[%emt 0:00:58]} Qf5 {[%emt 0:00:34]} 30. Qd3 {[%emt 0:00:40]} 1-0

[Event "Belarus-ch Women 2022"]
[Site "Minsk"]
[Date "2022.01.15"]
[Round "5.2"]
[White "Khomich, Maryna"]
[Black "Zeliantsova, Kseniya"]
[Result "0-1"]
[ECO "E68"]
[WhiteElo "1627"]
[BlackElo "1988"]
[Annotator "ChessBase"]
[PlyCount "110"]
[EventDate "2022.01.11"]
[EventType "tourn"]
[EventCountry "BLR"]
[SourceTitle "playchess.com"]
[Source "ChessBase"]
[SourceQuality "1"]
[TimeControl "40/5400+30:1800+30"]

1. Nf3 {[%emt 0:00:02]} g6 {[%emt 0:00:17]} 2. g3 {[%emt 0:00:07]} Bg7 {[%emt 0:00:02]} 3. Bg2 {[%emt 0:00:09]} d6 {[%emt 0:00:13]} 4. d4 {[%emt 0:00:22]} Nd7 {[%emt 0:00:37]} 5. c4 {[%emt 0:01:00]} Ngf6 {[%emt 0:02:29]} 6. O-O {[%emt 0:01:05]} O-O {[%emt 0:00:04]} 7. Nc3 {[%emt 0:00:07]} e5 {[%emt 0:00:23]} 8. e4 {[%emt 0:00:18]} Re8 {[%emt 0:00:48]} 9. h3 {[%emt 0:00:37]} h6 {[%emt 0:01:38]} 10. Re1 {[%emt 0:06:36]} exd4 {[%emt 0:00:50]} 11. Nxd4 {[%emt 0:00:07]} Nc5 {[%emt 0:00:05]} 12. Rb1 {[%emt 0:04:59]} Ne6 {[%emt 0:05:06]} 13. Be3 {[%emt 0:08:09]} Ng5 {[%emt 0:00:55]} 14. Bxg5 {[%emt 0:01:31]} hxg5 {[%emt 0:00:06]} 15. Qd2 {[%emt 0:03:39]} g4 {[%emt 0:03:14]} 16. h4 {[%emt 0:01:14]} Nd7 {[%emt 0:08:45]} 17. Nd5 {[%emt 0:06:56]} Ne5 {[%emt 0:07:42]} 18. b3 {[%emt 0:01:05]} c6 {[%emt 0:07:31]} 19. Ne3 {[%emt 0:08:18]} Qf6 {[%emt 0:03:31]} 20. Rbd1 {[%emt 0:00:48]} Bf8 {[%emt 0:02:47]} 21. Nf1 {[%emt 0:07:32]} a6 {[%emt 0:06:24]} 22. Qf4 {[%emt 0:06:12]} Qh8 {[%emt 0:00:58]} 23. Qc1 {[%emt 0:01:28]} Bh6 {[%emt 0:01:09]} 24. Qa3 {[%emt 0:01:38]} Qf6 {[%emt 0:14:02]} 25. Ne3 {[%emt 0:08:51]} Bf8 {[%emt 0:10:27]} 26. Qa5 {[%emt 0:01:33]} Bd7 {[%emt 0:03:42]} 27. b4 {[%emt 0:12:46]} b5 {[%emt 0:00:32]} 28. Qa3 {[%emt 0:08:38]} bxc4 {[%emt 0:01:52]} 29. Qc3 {[%emt 0:00:56]} Be6 {[%emt 0:00:26]} 30. Kf1 {[%emt 0:02:05]} Nd3 {[%emt 0:02:28]} 31. Re2 {[%emt 0:01:43]} c5 {[%emt 0:01:42]} 32. bxc5 {[%emt 0:00:16]} dxc5 {[%emt 0:00:08]} 33. Nb5 {[%emt 0:00:28]} Qe7 {[%emt 0:00:47]} 34. Na3 {[%emt 0:00:33]} Bg7 {[%emt 0:00:05]} 35. Qc2 {[%emt 0:00:56]} Nb4 {[%emt 0:00:20]} 36. Qa4 {[%emt 0:02:42]} c3 {[%emt 0:00:24]} 37. Nac4 {[%emt 0:02:00]} c2 {[%emt 0:01:13]} 38. Rc1 {[%emt 0:00:46]} Bh6 {[%emt 0:00:13]} 39. Rcxc2 {[%emt 0:01:02]} Nxc2 {[%emt 0:00:11]} 40. Qxc2 {[%emt 0:00:00]} Rab8 {[%emt 0:00:00]} 41. Kg1 {[%emt 0:04:49]} Bxe3 {[%emt 0:04:34]} 42. Rxe3 {[%emt 0:01:27]} Rb4 {[%emt 0:00:12]} 43. Bf1 {[%emt 0:04:55]} Reb8 {[%emt 0:00:57]} 44. Re1 {[%emt 0:02:32]} Qb7 {[%emt 0:04:34]} 45. Bd3 {[%emt 0:02:41]} Bxc4 {[%emt 0:01:15]} 46. Bxc4 {[%emt 0:00:07]} Rb1 {[%emt 0:00:02]} 47. Rf1 {[%emt 0:02:36]} Rxf1+ {[%emt 0:00:39]} 48. Bxf1 {[%emt 0:00:11]} Qc6 {[%emt 0:01:36]} 49. Bc4 {[%emt 0:06:10]} a5 {[%emt 0:01:03]} 50. Bd5 {[%emt 0:06:05]} Qf6 {[%emt 0:00:10]} 51. e5 {[%emt 0:00:43]} Qf5 {[%emt 0:02:24]} 52. Qxc5 {[%emt 0:03:25]} Rb1+ {[%emt 0:00:47]} 53. Kh2 {[%emt 0:01:22]} Re1 {[%emt 0:02:26]} 54. Qc4 {[%emt 0:00:39]} Qxf2+ {[%emt 0:00:05]} 55. Bg2 {[%emt 0:00:08]} Qg1# {[%emt 0:00:03]} 0-1

[Event "Belarus-ch Women 2022"]
[Site "Minsk"]
[Date "2022.01.15"]
[Round "5.3"]
[White "Koishman, Karina"]
[Black "Ajusheva, Renata"]
[Result "1/2-1/2"]
[ECO "D01"]
[WhiteElo "1359"]
[BlackElo "1464"]
[Annotator "NA"]
[PlyCount "93"]
[EventDate "2022.01.11"]
[EventType "tourn"]
[EventCountry "BLR"]
[SourceTitle "playchess.com"]
[Source "ChessBase"]
[SourceQuality "1"]
[TimeControl "40/5400+30:1800+30"]

1. d4 {[%emt 0:00:01]} d5 {[%emt 0:00:27]} 2. Nc3 {[%emt 0:00:08]} Nf6 {[%emt 0:00:04]} 3. Bg5 {[%emt 0:00:10]} Nbd7 {[%emt 0:00:06]} 4. f3 {[%emt 0:00:12]} c6 {[%emt 0:00:08]} 5. Qd2 {[%emt 0:00:12]} h6 {[%emt 0:00:13]} 6. Bh4 {[%emt 0:01:07]} b5 {[%emt 0:01:18]} 7. e3 {[%emt 0:04:28]} Nb6 {[%emt 0:02:58]} 8. Bd3 {[%emt 0:05:32]} Nc4 {[%emt 0:02:29]} 9. Bxc4 {[%emt 0:02:22]} bxc4 {[%emt 0:00:04]} 10. e4 {[%emt 0:03:44]} g5 {[%emt 0:02:26]} 11. Bf2 {[%emt 0:02:56]} Rg8 {[%emt 0:03:30]} 12. e5 {[%emt 0:05:01]} Nh5 {[%emt 0:01:05]} 13. Nge2 {[%emt 0:04:31]} g4 {[%emt 0:07:02]} 14. f4 {[%emt 0:05:25]} Bf5 {[%emt 0:01:21]} 15. O-O {[%emt 0:04:07]} e6 {[%emt 0:01:13]} 16. Nd1 {[%emt 0:01:33]} Rb8 {[%emt 0:00:38]} 17. a3 {[%emt 0:07:02]} Be7 {[%emt 0:01:50]} 18. Ne3 {[%emt 0:13:24]} Rxb2 {[%emt 0:09:36]} 19. Nxf5 {[%emt 0:02:38]} exf5 {[%emt 0:00:05]} 20. Rfb1 {[%emt 0:04:40]} Rb6 {[%emt 0:03:26]} 21. a4 {[%emt 0:03:47]} a5 {[%emt 0:04:06]} 22. Qc1 {[%emt 0:03:34]} Kd7 {[%emt 0:00:55]} 23. Be1 {[%emt 0:02:17]} Bb4 {[%emt 0:01:05]} 24. Bxb4 {[%emt 0:01:33]} axb4 {[%emt 0:00:19]} 25. a5 {[%emt 0:00:37]} Rb5 {[%emt 0:00:17]} 26. a6 {[%emt 0:01:15]} Qb6 {[%emt 0:05:42]} 27. c3 {[%emt 0:05:08]} b3 {[%emt 0:01:18]} 28. Qa3 {[%emt 0:00:19]} Qc7 {[%emt 0:00:15]} 29. g3 {[%emt 0:02:03]} Ng7 {[%emt 0:00:35]} 30. Kf2 {[%emt 0:01:41]} Ra8 {[%emt 0:00:18]} 31. Ke3 {[%emt 0:06:39]} Ne6 {[%emt 0:00:25]} 32. h3 {[%emt 0:00:48]} h5 {[%emt 0:02:53]} 33. hxg4 {[%emt 0:00:33]} hxg4 {[%emt 0:00:05]} 34. Rh1 {[%emt 0:01:43]} b2 {[%emt 0:00:23]} 35. Rab1 {[%emt 0:00:15]} Rb3 {[%emt 0:00:10]} 36. Qa2 {[%emt 0:00:47]} Qb6 {[%emt 0:00:12]} 37. Rbg1 {[%emt 0:01:10]} Rxa6 {[%emt 0:00:09]} 38. Qb1 {[%emt 0:00:09]} Ra1 {[%emt 0:00:11]} 39. Qxf5 {[%emt 0:00:12]} Rxg1 {[%emt 0:04:16]} 40. Qxf7+ {[%emt 0:00:00]} Kc8 {[%emt 0:00:00]} 41. Qxe6+ {[%emt 0:03:08]} Kb7 {[%emt 0:00:17]} 42. Rxg1 {[%emt 0:01:21]} b1=Q {[%emt 0:00:36]} 43. Rxb1 {[%emt 0:00:15]} Rxb1 {[%emt 0:00:06]} 44. f5 {[%emt 0:00:40]} Rf1 {[%emt 0:00:40]} 45. Qe7+ {[%emt 0:01:55]} Kc8 {[%emt 0:03:26]} 46. Qe8+ {[%emt 0:00:39]} Kb7 {[%emt 0:00:18]} 47. Qe7+ {[%emt 0:00:14]} 1/2-1/2

[Event "Belarus-ch Women 2022"]
[Site "Minsk"]
[Date "2022.01.15"]
[Round "5.4"]
[White "Poliakova, Varvara"]
[Black "Bendik, Margarita"]
[Result "1-0"]
[ECO "B01"]
[WhiteElo "2116"]
[BlackElo "1388"]
[Annotator "ChessBase"]
[PlyCount "67"]
[EventDate "2022.01.11"]
[EventType "tourn"]
[EventCountry "BLR"]
[SourceTitle "playchess.com"]
[Source "ChessBase"]
[SourceQuality "1"]
[TimeControl "40/5400+30:1800+30"]

1. e4 {[%emt 0:00:03]} d5 {[%emt 0:00:37]} 2. exd5 {[%emt 0:00:08]} Qxd5 {[%emt 0:00:03]} 3. Nc3 {[%emt 0:00:06]} Qd6 {[%emt 0:00:06]} 4. d4 {[%emt 0:00:05]} Nf6 {[%emt 0:00:03]} 5. Nf3 {[%emt 0:00:21]} c6 {[%emt 0:00:04]} 6. Ne5 {[%emt 0:02:17]} Nbd7 {[%emt 0:00:05]} 7. f4 {[%emt 0:01:31]} Nb6 {[%emt 0:00:13]} 8. g4 {[%emt 0:02:24]} g6 {[%emt 0:01:33]} 9. Bg2 {[%emt 0:00:11]} Nbd5 {[%emt 0:03:10]} 10. O-O {[%emt 0:02:27]} Bg7 {[%emt 0:05:19]} 11. g5 {[%emt 0:04:47]} Nxc3 {[%emt 0:01:03]} 12. bxc3 {[%emt 0:00:07]} Nd5 {[%emt 0:00:21]} 13. c4 {[%emt 0:03:29]} Nc3 {[%emt 0:00:29]} 14. Qf3 {[%emt 0:07:00]} Bxe5 {[%emt 0:15:54]} 15. fxe5 {[%emt 0:02:58]} Qxd4+ {[%emt 0:00:10]} 16. Kh1 {[%emt 0:02:34]} Qxc4 {[%emt 0:30:46]} 17. e6 {[%emt 0:08:34]} O-O {[%emt 0:04:49]} 18. Bd2 {[%emt 0:05:35]} Nb5 {[%emt 0:01:14]} 19. exf7+ {[%emt 0:03:45]} Rxf7 {[%emt 0:00:42]} 20. Qe3 {[%emt 0:01:14]} Bf5 {[%emt 0:04:26]} 21. a4 {[%emt 0:07:08]} Nc7 {[%emt 0:01:44]} 22. Qe5 {[%emt 0:11:52]} Nd5 {[%emt 0:02:41]} 23. Rae1 {[%emt 0:02:29]} Qxc2 {[%emt 0:13:37]} 24. Bc1 {[%emt 0:00:59]} Nc3 {[%emt 0:02:03]} 25. Be3 {[%emt 0:06:02]} Be4 {[%emt 0:01:17]} 26. Rg1 {[%emt 0:00:35]} Rf5 {[%emt 0:10:10]} 27. Qxe7 {[%emt 0:04:31]} Rf7 {[%emt 0:00:49]} 28. Qe5 {[%emt 0:00:35]} Ne2 {[%emt 0:00:30]} 29. Bxe4 {[%emt 0:01:33]} Qc4 {[%emt 0:00:31]} 30. Rg2 {[%emt 0:02:51]} Raf8 {[%emt 0:00:21]} 31. Rgxe2 {[%emt 0:01:04]} Rf1+ {[%emt 0:00:31]} 32. Kg2 {[%emt 0:00:08]} Rxe1 {[%emt 0:00:37]} 33. Rxe1 {[%emt 0:00:04]} c5 {[%emt 0:00:31]} 34. Bd5+ {[%emt 0:00:06]} 1-0

[Event "Belarus-ch Women 2022"]
[Site "Minsk"]
[Date "2022.01.15"]
[Round "5.5"]
[White "Shaban, Aliaksandra"]
[Black "Liashkevich, Lizaveta"]
[Result "1/2-1/2"]
[ECO "B22"]
[WhiteElo "1680"]
[BlackElo "1569"]
[Annotator "NA"]
[PlyCount "106"]
[EventDate "2022.01.11"]
[EventType "tourn"]
[EventCountry "BLR"]
[SourceTitle "playchess.com"]
[Source "ChessBase"]
[SourceQuality "1"]
[TimeControl "40/5400+30:1800+30"]

1. e4 {[%emt 0:00:02]} c5 {[%emt 0:00:09]} 2. c3 {[%emt 0:00:49]} d5 {[%emt 0:00:38]} 3. exd5 {[%emt 0:01:01]} Qxd5 {[%emt 0:00:12]} 4. d4 {[%emt 0:00:10]} Nf6 {[%emt 0:00:43]} 5. Nf3 {[%emt 0:00:44]} Bg4 {[%emt 0:01:07]} 6. Be2 {[%emt 0:00:35]} e6 {[%emt 0:01:31]} 7. h3 {[%emt 0:03:25]} Bh5 {[%emt 0:00:24]} 8. O-O {[%emt 0:00:15]} Nc6 {[%emt 0:01:55]} 9. Be3 {[%emt 0:00:34]} cxd4 {[%emt 0:00:49]} 10. Nxd4 {[%emt 0:01:02]} Bxe2 {[%emt 0:03:37]} 11. Qxe2 {[%emt 0:00:45]} Nxd4 {[%emt 0:10:47]} 12. Bxd4 {[%emt 0:00:55]} Be7 {[%emt 0:01:04]} 13. Nd2 {[%emt 0:02:33]} O-O {[%emt 0:01:46]} 14. Nf3 {[%emt 0:01:44]} Rfd8 {[%emt 0:02:37]} 15. Rfd1 {[%emt 0:00:49]} Qa5 {[%emt 0:02:28]} 16. c4 {[%emt 0:02:17]} Rac8 {[%emt 0:02:58]} 17. a3 {[%emt 0:02:37]} Nd7 {[%emt 0:08:03]} 18. b4 {[%emt 0:01:54]} Qc7 {[%emt 0:00:27]} 19. Rac1 {[%emt 0:00:35]} a5 {[%emt 0:03:09]} 20. c5 {[%emt 0:01:18]} axb4 {[%emt 0:02:51]} 21. axb4 {[%emt 0:02:44]} Bf6 {[%emt 0:04:53]} 22. Qe3 {[%emt 0:08:23]} Qc6 {[%emt 0:09:28]} 23. Qe2 {[%emt 0:03:23]} Qc7 {[%emt 0:03:31]} 24. g3 {[%emt 0:07:45]} h6 {[%emt 0:10:36]} 25. h4 {[%emt 0:02:19]} Re8 {[%emt 0:03:38]} 26. Bxf6 {[%emt 0:05:57]} Nxf6 {[%emt 0:00:07]} 27. Nd4 {[%emt 0:00:17]} Red8 {[%emt 0:04:13]} 28. Nb5 {[%emt 0:01:10]} Qe7 {[%emt 0:00:34]} 29. Nd6 {[%emt 0:02:05]} Rc7 {[%emt 0:01:50]} 30. Rc4 {[%emt 0:04:17]} Rcd7 {[%emt 0:03:23]} 31. Rcd4 {[%emt 0:01:13]} Nd5 {[%emt 0:03:31]} 32. Re1 {[%emt 0:03:17]} Qf6 {[%emt 0:02:38]} 33. Qd3 {[%emt 0:00:58]} Kh8 {[%emt 0:01:59]} 34. Kg2 {[%emt 0:03:24]} Kg8 {[%emt 0:01:06]} 35. Kg1 {[%emt 0:01:59]} Kh8 {[%emt 0:00:18]} 36. b5 {[%emt 0:02:11]} Rxd6 {[%emt 0:08:07]} 37. cxd6 {[%emt 0:00:54]} Rxd6 {[%emt 0:00:02]} 38. Rc4 {[%emt 0:04:22]} g6 {[%emt 0:01:26]} 39. Qe4 {[%emt 0:02:21]} Kg7 {[%emt 0:00:46]} 40. Rc8 {[%emt 0:00:00]} b6 {[%emt 0:00:00]} 41. Qe5 {[%emt 0:05:41]} Qxe5 {[%emt 0:01:34]} 42. Rxe5 {[%emt 0:00:01]} Rd7 {[%emt 0:00:37]} 43. Rc6 {[%emt 0:00:50]} Kf6 {[%emt 0:05:59]} 44. Re1 {[%emt 0:01:34]} Ra7 {[%emt 0:01:08]} 45. Rd1 {[%emt 0:03:07]} Rd7 {[%emt 0:02:37]} 46. Rdc1 {[%emt 0:02:25]} Ra7 {[%emt 0:01:45]} 47. Kf1 {[%emt 0:02:18]} Ra5 {[%emt 0:01:59]} 48. Rb1 {[%emt 0:00:19]} h5 {[%emt 0:00:38]} 49. Rb2 {[%emt 0:01:49]} Ke7 {[%emt 0:00:48]} 50. Ke2 {[%emt 0:01:21]} Kd7 {[%emt 0:00:44]} 51. Kd3 {[%emt 0:02:44]} Rxb5 {[%emt 0:02:00]} 52. Rxb5 {[%emt 0:01:53]} Kxc6 {[%emt 0:00:06]} 53. Kc4 {[%emt 0:01:36]} Kc7 {[%emt 0:03:10]} 1/2-1/2

[Event "Belarus-ch Women 2022"]
[Site "Minsk"]
[Date "2022.01.16"]
[Round "6.1"]
[White "Sidorenja, Milena"]
[Black "Liashkevich, Lizaveta"]
[Result "0-1"]
[ECO "B22"]
[WhiteElo "1510"]
[BlackElo "1569"]
[Annotator "NA RC"]
[PlyCount "88"]
[EventDate "2022.01.11"]
[EventType "tourn"]
[EventCountry "BLR"]
[SourceTitle "playchess.com"]
[Source "ChessBase"]
[SourceQuality "1"]
[TimeControl "40/5400+30:1800+30"]

1. e4 {[%emt 0:00:03]} c5 {[%emt 0:00:08]} 2. c3 {[%emt 0:00:10]} d5 {[%emt 0:00:16]} 3. exd5 {[%emt 0:00:08]} Qxd5 {[%emt 0:00:09]} 4. d4 {[%emt 0:00:14]} Nf6 {[%emt 0:00:46]} 5. Nf3 {[%emt 0:00:13]} Nc6 {[%emt 0:01:40]} 6. Be2 {[%emt 0:00:30]} e6 {[%emt 0:01:13]} 7. O-O {[%emt 0:00:19]} cxd4 {[%emt 0:00:55]} 8. cxd4 {[%emt 0:05:11]} Be7 {[%emt 0:04:26]} 9. Nc3 {[%emt 0:00:19]} Qd6 {[%emt 0:01:07]} 10. a3 {[%emt 0:03:48]} a6 {[%emt 0:03:48]} 11. h3 {[%emt 0:02:09]} O-O {[%emt 0:01:48]} 12. Be3 {[%emt 0:00:10]} b5 {[%emt 0:01:35]} 13. Qc2 {[%emt 0:06:47]} Bb7 {[%emt 0:01:27]} 14. Rad1 {[%emt 0:00:29]} Rac8 {[%emt 0:04:33]} 15. Qb1 {[%emt 0:00:23]} Rfd8 {[%emt 0:05:54]} 16. Bd3 {[%emt 0:10:00]} b4 {[%emt 0:09:02]} 17. Na4 {[%emt 0:21:37]} a5 {[%emt 0:20:57]} 18. Nb6 {[%emt 0:02:03]} Rb8 {[%emt 0:02:10]} 19. Nc4 {[%emt 0:02:07]} Qc7 {[%emt 0:01:35]} 20. Rc1 {[%emt 0:17:09]} h6 {[%emt 0:12:00]} 21. Rfd1 {[%emt 0:04:27]} Nd5 {[%emt 0:04:38]} 22. Bh7+ {[%emt 0:03:50]} Kf8 {[%emt 0:00:46]} 23. Nfe5 {[%emt 0:00:14]} Rbc8 {[%emt 0:08:31]} 24. Bxh6 {[%emt 0:05:29]} gxh6 {[%emt 0:01:16]} 25. Nxf7 {[%emt 0:00:09]} Bf6 {[%emt 0:02:33]} 26. Nxd8 {[%emt 0:05:51]} Rxd8 {[%emt 0:00:28]} 27. Qe4 {[%emt 0:04:53]} Qg7 {[%emt 0:02:32]} 28. Rd3 {[%emt 0:05:48]} Rd7 {[%emt 0:07:40]} 29. Bg6 {[%emt 0:00:00]} Nde7 {[%emt 0:00:26]} 30. Nb6 {[%emt 0:00:00]} Rc7 {[%emt 0:00:33]} 31. Rg3 {[%emt 0:00:36]} Nxd4 {[%emt 0:00:27]} 32. Rxc7 {[%emt 0:00:44]} Bxe4 {[%emt 0:00:06]} 33. Nd7+ {[%emt 0:00:06]} Kg8 {[%emt 0:00:20]} 34. Bf7+ {[%emt 0:00:57]} Kxf7 {[%emt 0:00:24]} 35. Rxg7+ {[%emt 0:00:03]} Bxg7 {[%emt 0:00:26]} 36. axb4 {[%emt 0:00:38]} axb4 {[%emt 0:00:02]} 37. Nc5 {[%emt 0:00:44]} Bd5 {[%emt 0:00:18]} 38. Nd3 {[%emt 0:00:24]} b3 {[%emt 0:00:22]} 39. Kf1 {[%emt 0:00:36]} Be4 {[%emt 0:00:53]} 40. Nc5 {[%emt 0:00:00]} Bc2 {[%emt 0:00:00]} 41. Na4 {[%emt 0:02:30]} Be5 {[%emt 0:02:17]} 42. Rb7 {[%emt 0:01:57]} Kf6 {[%emt 0:02:32]} 43. g3 {[%emt 0:01:42]} Be4 {[%emt 0:04:35]} 44. Rb4 {[%emt 0:02:45]} Nd5 {[%emt 0:00:54]} 0-1

[Event "Belarus-ch Women 2022"]
[Site "Minsk"]
[Date "2022.01.16"]
[Round "6.2"]
[White "Bendik, Margarita"]
[Black "Shaban, Aliaksandra"]
[Result "0-1"]
[ECO "A00"]
[WhiteElo "1388"]
[BlackElo "1680"]
[Annotator "NA RC"]
[PlyCount "136"]
[EventDate "2022.01.11"]
[EventType "tourn"]
[EventCountry "BLR"]
[SourceTitle "playchess.com"]
[Source "ChessBase"]
[SourceQuality "1"]
[TimeControl "40/5400+30:1800+30"]

1. Nf3 {[%emt 0:00:02]} Nf6 {[%emt 0:00:05]} 2. b4 {[%emt 0:00:03]} d5 {[%emt 0:00:20]} 3. Bb2 {[%emt 0:00:08]} e6 {[%emt 0:00:35]} 4. a3 {[%emt 0:00:05]} c5 {[%emt 0:01:14]} 5. b5 {[%emt 0:00:08]} a6 {[%emt 0:00:52]} 6. e3 {[%emt 0:00:31]} axb5 {[%emt 0:00:55]} 7. Bxb5+ {[%emt 0:00:07]} Bd7 {[%emt 0:00:54]} 8. a4 {[%emt 0:00:07]} Bd6 {[%emt 0:03:08]} 9. c4 {[%emt 0:05:01]} dxc4 {[%emt 0:02:50]} 10. Na3 {[%emt 0:05:58]} Nc6 {[%emt 0:04:37]} 11. Nxc4 {[%emt 0:00:27]} Bc7 {[%emt 0:00:49]} 12. O-O {[%emt 0:01:22]} O-O {[%emt 0:00:15]} 13. Qe2 {[%emt 0:08:25]} Nd5 {[%emt 0:03:55]} 14. Rfd1 {[%emt 0:00:44]} Nb6 {[%emt 0:04:24]} 15. d4 {[%emt 0:06:11]} cxd4 {[%emt 0:11:26]} 16. Nxb6 {[%emt 0:05:56]} Bxb6 {[%emt 0:00:31]} 17. Nxd4 {[%emt 0:06:48]} Qe8 {[%emt 0:16:46]} 18. Ba3 {[%emt 0:03:13]} Bxd4 {[%emt 0:03:39]} 19. Bxc6 {[%emt 0:02:34]} Bxc6 {[%emt 0:00:50]} 20. Rxd4 {[%emt 0:00:23]} e5 {[%emt 0:00:16]} 21. Rd2 {[%emt 0:07:40]} Rxa4 {[%emt 0:01:11]} 22. Raa2 {[%emt 0:22:33]} Bb5 {[%emt 0:01:41]} 23. Qd1 {[%emt 0:01:55]} Qa8 {[%emt 0:02:27]} 24. Bxf8 {[%emt 0:13:56]} Rxa2 {[%emt 0:00:44]} 25. Rxa2 {[%emt 0:00:55]} Qxa2 {[%emt 0:00:14]} 26. Be7 {[%emt 0:00:26]} h6 {[%emt 0:00:46]} 27. h3 {[%emt 0:00:18]} Bc6 {[%emt 0:03:53]} 28. Qd8+ {[%emt 0:00:30]} Kh7 {[%emt 0:00:01]} 29. Qd3+ {[%emt 0:01:06]} e4 {[%emt 0:02:00]} 30. Qc3 {[%emt 0:00:55]} Qe6 {[%emt 0:01:47]} 31. Bc5 {[%emt 0:00:26]} Qd5 {[%emt 0:00:54]} 32. Bd4 {[%emt 0:00:19]} f6 {[%emt 0:00:22]} 33. Qb4 {[%emt 0:00:20]} Qe6 {[%emt 0:02:15]} 34. Qc5 {[%emt 0:00:34]} Kg8 {[%emt 0:02:03]} 35. Qb6 {[%emt 0:01:30]} Qd7 {[%emt 0:04:12]} 36. Kh2 {[%emt 0:02:05]} Kf7 {[%emt 0:01:01]} 37. Kg1 {[%emt 0:00:12]} Bd5 {[%emt 0:01:35]} 38. Bb2 {[%emt 0:03:02]} Bc4 39. Kh2 {[%emt 0:03:05]} Kg6 {[%emt 0:04:09]} 40. Bd4 {[%emt 0:00:30]} Bd3 41. Qc5 {[%emt 0:00:18]} Qf5 {[%emt 0:03:32]} 42. Qxf5+ {[%emt 0:02:19]} Kxf5 {[%emt 0:00:01]} 43. g4+ {[%emt 0:01:24]} Ke6 {[%emt 0:00:14]} 44. Kg3 {[%emt 0:00:37]} g6 {[%emt 0:01:08]} 45. h4 {[%emt 0:00:41]} f5 {[%emt 0:00:31]} 46. gxf5+ {[%emt 0:06:02]} Kxf5 {[%emt 0:01:39]} 47. Bg7 {[%emt 0:02:44]} h5 {[%emt 0:01:42]} 48. f3 {[%emt 0:07:01]} b5 {[%emt 0:01:41]} 49. fxe4+ {[%emt 0:05:54]} Kxe4 {[%emt 0:00:59]} 50. Bd4 {[%emt 0:00:23]} b4 {[%emt 0:00:06]} 51. Bc5 {[%emt 0:01:32]} b3 {[%emt 0:00:26]} 52. Bd4 {[%emt 0:00:07]} Bc2 {[%emt 0:01:31]} 53. Kf2 {[%emt 0:00:44]} Kf5 {[%emt 0:02:03]} 54. Kf3 {[%emt 0:01:51]} Bd3 {[%emt 0:01:18]} 55. Bb2 {[%emt 0:00:18]} Be4+ {[%emt 0:00:23]} 56. Kg3 {[%emt 0:00:20]} g5 {[%emt 0:00:24]} 57. hxg5 {[%emt 0:00:38]} Kxg5 {[%emt 0:00:01]} 58. Kh3 {[%emt 0:00:33]} h4 {[%emt 0:00:48]} 59. Bc3 {[%emt 0:01:15]} Bf5+ {[%emt 0:00:11]} 60. Kg2 {[%emt 0:00:24]} Kg4 {[%emt 0:00:12]} 61. Bb2 {[%emt 0:01:22]} h3+ {[%emt 0:00:30]} 62. Kh2 {[%emt 0:00:41]} Kf3 {[%emt 0:00:14]} 63. Bd4 {[%emt 0:00:06]} Be6 {[%emt 0:00:08]} 64. Kg1 {[%emt 0:00:14]} Ke4 {[%emt 0:00:34]} 65. Kf2 {[%emt 0:04:27]} Kd3 {[%emt 0:00:23]} 66. Kg3 {[%emt 0:00:34]} Kc2 {[%emt 0:00:11]} 67. e4 {[%emt 0:00:06]} b2 {[%emt 0:00:09]} 68. Bxb2 {[%emt 0:00:05]} Kxb2 {[%emt 0:00:03]} 0-1